bitfinex-derivatives/quotes_BTCF0:USTF0_20250823
["timestamp","ask_amount","ask_price","bid_price","bid_amount"]
[1755946054641,1.26235661,115670.0,115660.0,0.31013717]
[1755946056347,0.8815613,115670.0,115660.0,0.31013717]
[1755946056641,1.26235661,115670.0,115660.0,0.23225837]
[1755946057442,1.26235661,115670.0,115660.0,0.34127564]
[1755946058449,1.26235661,115670.0,115660.0,0.33113516]
[1755946058750,1.26235661,115670.0,115660.0,0.34127564]
[1755946059149,1.26235661,115670.0,115660.0,0.23225837]
[1755946067955,1.26235661,115670.0,115660.0,0.22211789]
[1755946068155,1.26235661,115670.0,115660.0,0.23225836]
[1755946069456,0.8815613,115670.0,115660.0,0.23225836]
[1755946069651,1.26235661,115670.0,115660.0,0.23225836]
[1755946072754,1.26235661,115670.0,115660.0,0.34127563]
[1755946077455,1.26235661,115670.0,115660.0,0.33113516]
[1755946077654,1.26235661,115670.0,115660.0,0.34127563]
[1755946081067,0.8815613,115670.0,115660.0,0.34127563]
[1755946081355,1.26235661,115670.0,115660.0,0.34127563]
[1755946083961,0.8815613,115670.0,115660.0,0.34127563]
[1755946084257,1.26235661,115670.0,115660.0,0.34127563]
[1755946084655,0.8815613,115670.0,115660.0,0.34127563]
[1755946084955,1.26235661,115670.0,115660.0,0.34127563]
[1755946085351,1.26235661,115670.0,115660.0,0.33113516]
[1755946085557,1.26235661,115670.0,115660.0,0.34127563]
[1755946086056,1.26235661,115670.0,115660.0,0.33113516]
[1755946086256,1.26235661,115670.0,115660.0,0.34127563]
[1755946087257,0.8815613,115670.0,115660.0,0.34127563]
[1755946087458,1.26235661,115670.0,115660.0,0.34127563]
[1755946087658,1.26235661,115670.0,115660.0,0.23225836]
[1755946095467,1.26235661,115670.0,115660.0,0.22211789]
[1755946095767,1.26235661,115670.0,115660.0,0.34127563]
[1755946095957,1.26235661,115670.0,115660.0,0.33113516]
[1755946096266,1.26235661,115670.0,115660.0,0.23225836]
[1755946098566,1.26235661,115670.0,115660.0,0.31013723]
[1755946101468,1.26235661,115670.0,115660.0,0.23225836]
[1755946102168,1.26235661,115670.0,115660.0,0.34127563]
[1755946107068,1.26235661,115670.0,115660.0,0.41915413]
[1755946107568,1.26235661,115670.0,115660.0,0.31013686]
[1755946107972,1.26235661,115670.0,115660.0,0.23225836]
[1755946110176,0.47227661,115670.0,115660.0,0.23225836]
[1755946110478,1.26171661,115670.0,115660.0,0.23225836]
[1755946110774,1.26167661,115670.0,115660.0,0.23225836]
[1755946112772,1.26167661,115670.0,115660.0,0.31013669]
[1755946113374,0.8808813,115670.0,115660.0,0.31013669]
[1755946113572,1.26167661,115670.0,115660.0,0.31013669]
[1755946114177,1.26167661,115670.0,115660.0,0.29999622]
[1755946114379,1.26167661,115670.0,115660.0,0.31013668]
[1755946122687,1.26167661,115670.0,115660.0,0.23225835]
[1755946123789,0.8808813,115670.0,115660.0,0.23225835]
[1755946123994,1.26167661,115670.0,115660.0,0.23225835]
[1755946124494,1.26167661,115670.0,115660.0,0.23225842]
[1755946125093,1.26167661,115670.0,115660.0,0.34127569]
[1755946133204,1.26167661,115670.0,115660.0,0.34127568]
[1755946134001,1.26167661,115670.0,115660.0,0.25478698]
[1755946135102,1.26167661,115670.0,115660.0,0.14576971]
[1755946135496,1.26167661,115670.0,115660.0,0.25478698]
[1755946136599,1.26167661,115670.0,115660.0,0.21997698]
[1755946137704,1.26167661,115670.0,115660.0,0.25214698]
[1755946138204,1.26167661,115670.0,115660.0,0.22100537]
[1755946138906,1.62247661,115670.0,115660.0,0.22100537]
[1755946141509,1.62247661,115670.0,115660.0,0.18883537]
[1755946141706,1.62247661,115670.0,115660.0,0.09511485]
[1755946141910,1.62247661,115670.0,115660.0,0.10525604]
[1755946142211,1.87247661,115670.0,115660.0,0.12899604]
[1755946142411,1.87327661,115670.0,115660.0,0.10525604]
[1755946144514,1.87327661,115670.0,115660.0,0.02738038]
[1755946144714,1.87327661,115670.0,115660.0,0.02738076]
[1755946145310,1.87327661,115670.0,115660.0,0.10525642]
[1755946148909,1.87327661,115670.0,115660.0,0.02738076]
[1755946151213,1.87327661,115670.0,115660.0,0.01723919]
[1755946151417,1.87327661,115670.0,115660.0,0.05112076]
[1755946152006,1.87327661,115670.0,115660.0,0.06389529]
[1755946152418,1.87327661,115670.0,115660.0,0.04015529]
[1755946153219,1.87327661,115670.0,115660.0,0.06389529]
[1755946154920,1.87327661,115670.0,115660.0,0.14177095]
[1755946157420,1.87327661,115670.0,115660.0,0.14177028]
[1755946157921,1.87327661,115670.0,115660.0,0.12453109]
[1755946160326,1.87327661,115670.0,115660.0,0.13356109]
[1755946160527,1.87247661,115670.0,115660.0,0.11064566]
[1755946160730,1.87247661,115670.0,115660.0,0.1335618]
[1755946162129,1.4916813,115670.0,115660.0,0.1568718]
[1755946162426,1.87247661,115670.0,115660.0,0.1568718]
[1755946164028,1.4916813,115670.0,115660.0,0.1568718]
[1755946164340,1.87247661,115670.0,115660.0,0.2194118]
[1755946164729,1.4916813,115670.0,115660.0,0.2194118]
[1755946164930,1.87247661,115670.0,115660.0,0.2194118]
[1755946169737,1.87247661,115670.0,115660.0,0.19649566]
[1755946169933,1.62247661,115670.0,115660.0,0.21942177]
[1755946175532,1.64184487,115670.0,115660.0,0.21942177]
[1755946177141,1.26104956,115670.0,115660.0,0.21942177]
[1755946177439,1.64184487,115670.0,115660.0,0.21942177]
[1755946178944,1.26104956,115670.0,115660.0,0.21942177]
[1755946179143,1.64184487,115670.0,115660.0,0.21942177]
[1755946179344,1.64184487,115670.0,115660.0,0.2092802]
[1755946179540,1.64184487,115670.0,115660.0,0.1415498]
[1755946180945,1.26104956,115670.0,115660.0,0.1415498]
[1755946181145,1.64184487,115670.0,115660.0,0.1415498]
[1755946182643,1.64184487,115670.0,115660.0,0.14162688]
[1755946182950,1.26104956,115670.0,115660.0,0.14162688]
[1755946183156,1.64184487,115670.0,115660.0,0.14162688]
[1755946188855,1.64184487,115670.0,115660.0,0.13148531]
[1755946189056,1.64184487,115670.0,115660.0,0.14162689]
[1755946189667,1.64184487,115670.0,115660.0,0.21950255]
[1755946198273,1.64184487,115670.0,115660.0,0.20936098]
[1755946198473,1.64184487,115670.0,115660.0,0.21950255]
[1755946200273,1.64184487,115670.0,115660.0,0.18733255]
[1755946201075,1.64184487,115670.0,115660.0,0.21918255]
[1755946204283,1.64184487,115670.0,115660.0,0.20631723]
[1755946204482,1.64184487,115670.0,115660.0,0.21918256]
[1755946206778,1.64184487,115670.0,115660.0,0.20631723]
[1755946206973,1.64184487,115670.0,115660.0,0.21918255]
[1755946207284,1.64184487,115670.0,115660.0,0.21918256]
[1755946209786,1.64184487,115670.0,115660.0,0.17285256]
[1755946212792,1.64184487,115670.0,115660.0,0.21870256]
[1755946213986,1.64184487,115670.0,115660.0,0.18685256]
[1755946214191,1.64184487,115670.0,115660.0,0.21870256]
[1755946214690,0.85244487,115670.0,115660.0,0.21870256]
[1755946214990,1.64088487,115670.0,115660.0,0.21870256]
[1755946216193,1.64088487,115670.0,115660.0,0.20856099]
[1755946216392,1.64088487,115670.0,115660.0,0.21865948]
[1755946216688,1.64088487,115670.0,115660.0,0.20583723]
[1755946216885,1.64088487,115670.0,115660.0,0.21865947]
[1755946217794,1.64084487,115670.0,115660.0,0.21865947]
[1755946221295,0.85244487,115670.0,115660.0,0.21865947]
[1755946221492,1.64084487,115670.0,115660.0,0.21865947]
[1755946223900,1.26004956,115670.0,115660.0,0.21865947]
[1755946224102,1.64084487,115670.0,115660.0,0.21865947]
[1755946225606,1.64084487,115670.0,115660.0,0.20583723]
[1755946225800,1.64084487,115670.0,115660.0,0.21865947]
[1755946231704,1.26004956,115670.0,115660.0,0.21865947]
[1755946231907,1.64084487,115670.0,115660.0,0.21865947]
[1755946235115,1.64084487,115670.0,115660.0,0.20583723]
[1755946235314,1.64084487,115670.0,115660.0,0.21865947]
[1755946243528,2.00164487,115670.0,115660.0,0.21865947]
[1755946244529,2.00164487,115670.0,115660.0,0.19569566]
[1755946244731,2.00164487,115670.0,115660.0,0.21869501]
[1755946253841,1.62084956,115670.0,115660.0,0.21869501]
[1755946254034,2.00164487,115670.0,115660.0,0.21869501]
[1755946254734,2.00164487,115670.0,115660.0,0.20583723]
[1755946254938,2.00164487,115670.0,115660.0,0.21869501]
[1755946256941,1.62084956,115670.0,115660.0,0.21869501]
[1755946257339,2.00164487,115670.0,115660.0,0.21869501]
[1755946262331,2.00164487,115670.0,115660.0,0.20854017]
[1755946262536,2.00164487,115670.0,115660.0,0.21868173]
[1755946263841,2.00164487,115670.0,115660.0,0.18683173]
[1755946266744,2.00164487,115670.0,115660.0,0.17283173]
[1755946271749,2.00164487,115670.0,115660.0,0.15998722]
[1755946271951,2.00164487,115670.0,115660.0,0.15694171]
[1755946272555,2.00164487,115670.0,115660.0,0.15736788]
[1755946278154,2.00164487,115670.0,115660.0,0.15736792]
[1755946281260,2.00164487,115670.0,115660.0,0.14409722]
[1755946281458,2.00164487,115670.0,115660.0,0.15736797]
[1755946281959,2.00164487,115670.0,115660.0,0.15736798]
[1755946290674,2.00164487,115670.0,115660.0,0.14409722]
[1755946290872,2.00164487,115670.0,115660.0,0.15736821]
[1755946291575,2.00164487,115670.0,115660.0,0.20422821]
[1755946291765,2.00164487,115670.0,115660.0,0.20422827]
[1755946293282,1.21324487,115670.0,115660.0,0.20422827]
[1755946293483,2.00076487,115670.0,115660.0,0.20422827]
[1755946294876,2.00076487,115670.0,115660.0,0.17119827]
[1755946297888,2.00102948,115670.0,115660.0,0.17119827]
[1755946298386,2.00102948,115670.0,115660.0,0.15736827]
[1755946300087,2.00102948,115670.0,115660.0,0.14722671]
[1755946300285,2.00102948,115670.0,115660.0,0.15736828]
[1755946303286,2.00102948,115670.0,115660.0,0.14409722]
[1755946303482,2.00102948,115670.0,115660.0,0.15717226]
[1755946309590,2.00102948,115670.0,115660.0,0.14409722]
[1755946309788,2.00102948,115670.0,115660.0,0.15717226]
[1755946310183,2.00102948,115670.0,115660.0,0.14409722]
[1755946310391,2.00102948,115670.0,115660.0,0.15717226]
[1755946316895,1.62023417,115670.0,115660.0,0.19020226]
[1755946317094,2.00102948,115670.0,115660.0,0.20403226]
[1755946318994,2.00102948,115670.0,115660.0,0.19095722]
[1755946319193,2.00102948,115670.0,115660.0,0.20403225]
[1755946321396,2.00102948,115670.0,115660.0,0.17100225]
[1755946321590,2.00102948,115670.0,115660.0,0.15717225]
[1755946326499,2.00102948,115670.0,115660.0,0.15717226]
[1755946327498,2.00102948,115670.0,115660.0,0.13395566]
[1755946327700,2.00102948,115670.0,115660.0,0.15717226]
[1755946330700,2.00102948,115670.0,115660.0,0.1470307]
[1755946330901,2.00102948,115670.0,115660.0,0.15717226]
[1755946337108,2.00102948,115670.0,115660.0,0.15716755]
[1755946346208,2.00102948,115670.0,115660.0,0.14702599]
[1755946346408,2.00102948,115670.0,115660.0,0.15716597]
[1755946347117,2.00102948,115670.0,115660.0,0.15716593]
[1755946354425,2.00102948,115670.0,115660.0,0.12482593]
[1755946355915,2.00102948,115670.0,115660.0,0.1248258]
[1755946356627,2.00102948,115670.0,115660.0,0.12482559]
[1755946365140,2.00102948,115670.0,115660.0,0.11175728]
[1755946365332,2.00102948,115670.0,115660.0,0.12472404]
[1755946365528,1.27942948,115670.0,115660.0,0.12472404]
[1755946365729,2.00102948,115670.0,115660.0,0.12472404]
[1755946366036,2.00102948,115670.0,115660.0,0.12472402]
[1755946367540,1.27942948,115670.0,115660.0,0.12472402]
[1755946367742,2.00102948,115670.0,115660.0,0.12472402]
[1755946368741,2.00102948,115670.0,115660.0,0.13407402]
[1755946371046,2.00102948,115670.0,115660.0,0.15654402]
[1755946372640,1.62023417,115670.0,115660.0,0.15654402]
[1755946373040,2.00102948,115670.0,115660.0,0.15654402]
[1755946374645,2.00102948,115670.0,115660.0,0.14357728]
[1755946374850,2.00102948,115670.0,115660.0,0.15654415]
[1755946375549,2.00102948,115670.0,115660.0,0.15654418]
[1755946376051,1.62023417,115670.0,115660.0,0.15654418]
[1755946376349,2.00102948,115670.0,115660.0,0.15654418]
[1755946378553,2.00102948,115670.0,115660.0,0.18811418]
[1755946379152,2.00102948,115670.0,115660.0,0.15654418]
[1755946382457,1.27942948,115670.0,115660.0,0.15654418]
[1755946382648,2.00102948,115670.0,115660.0,0.15654418]
[1755946382955,2.00102948,115670.0,115660.0,0.13343566]
[1755946383256,2.00102948,115670.0,115660.0,0.15654456]
[1755946383454,1.27942948,115670.0,115660.0,0.15654456]
[1755946383753,2.00102948,115670.0,115660.0,0.15654466]
[1755946386656,2.00102948,115670.0,115660.0,0.14640304]
[1755946386855,2.00102948,115670.0,115660.0,0.15654466]
[1755946388958,2.00102948,115670.0,115660.0,0.18811466]
[1755946389458,2.00102948,115670.0,115660.0,0.20244466]
[1755946389857,2.00102948,115670.0,115660.0,0.21765466]
[1755946390260,1.62023417,115670.0,115660.0,0.21765466]
[1755946390556,2.00102948,115670.0,115660.0,0.21765466]
[1755946391357,1.62023417,115670.0,115660.0,0.21765466]
[1755946391555,2.00102948,115670.0,115660.0,0.21765466]
[1755946392460,2.00102948,115670.0,115660.0,0.19454566]
[1755946392654,2.00102948,115670.0,115660.0,0.21778799]
[1755946394862,1.62023417,115670.0,115660.0,0.21778799]
[1755946395063,2.00102948,115670.0,115660.0,0.21778799]
[1755946401770,2.00102948,115670.0,115660.0,0.20764637]
[1755946401972,2.00102948,115670.0,115660.0,0.21778799]
[1755946402174,2.00102948,115670.0,115660.0,0.18621799]
[1755946403065,2.00102948,115670.0,115660.0,0.21778799]
[1755946404970,2.00102948,115670.0,115660.0,0.18621799]
[1755946407277,2.00102948,115670.0,115660.0,0.17188799]
[1755946407479,2.00102948,115670.0,115660.0,0.13420799]
[1755946407784,2.00102948,115670.0,115660.0,0.12485799]
[1755946408078,2.00102948,115670.0,115660.0,0.12485817]
[1755946408472,2.00102948,115670.0,115660.0,0.10111817]
[1755946409273,2.00102948,115670.0,115660.0,0.13454817]
[1755946409480,2.00102948,115670.0,115660.0,0.21996817]
[1755946410483,2.00102948,115670.0,115660.0,0.17176817]
[1755946410781,2.00102948,115670.0,115660.0,0.13454817]
[1755946411180,2.00102948,115670.0,115660.0,0.11130566]
[1755946411382,2.00102948,115670.0,115660.0,0.13454744]
[1755946411886,2.00102948,115670.0,115660.0,0.13454731]
[1755946414388,2.00102948,115670.0,115660.0,0.13454709]
[1755946417287,2.00102948,115670.0,115660.0,0.12440524]
[1755946417584,2.00102948,115670.0,115660.0,0.13454709]
[1755946420388,2.00035975,115670.0,115660.0,0.12144751]
[1755946420582,2.00035975,115670.0,115660.0,0.13454669]
[1755946421583,2.00035975,115670.0,115660.0,0.13454667]
[1755946424393,2.00035975,115670.0,115660.0,0.15643667]
[1755946427493,1.27875975,115670.0,115660.0,0.15643667]
[1755946427792,2.00035975,115670.0,115660.0,0.15643667]
[1755946429994,2.00035975,115670.0,115660.0,0.1561244]
[1755946430395,2.00035975,115670.0,115660.0,0.2196544]
[1755946433596,2.00035975,115670.0,115660.0,0.14177874]
[1755946436398,2.00035975,115670.0,115660.0,0.10734874]
[1755946436900,1.61956444,115670.0,115660.0,0.10734874]
[1755946437102,2.00035975,115670.0,115660.0,0.09357874]
[1755946439303,2.00035975,115670.0,115660.0,0.08079185]
[1755946439501,2.00035975,115670.0,115660.0,0.09358011]
[1755946441400,2.00035975,115670.0,115660.0,0.17145577]
[1755946441602,2.00035975,115670.0,115660.0,0.15866751]
[1755946441802,2.00035975,115670.0,115660.0,0.17145583]
[1755946443007,2.02713975,115670.0,115660.0,0.07846164]
[1755946443707,2.02713975,115670.0,115660.0,0.08763164]
[1755946445102,2.02713975,115670.0,115660.0,0.11138164]
[1755946446108,2.02713975,115670.0,115660.0,0.13369164]
[1755946447000,2.02713975,115670.0,115660.0,0.07815736]
[1755946447404,2.02713975,115670.0,115660.0,0.11202736]
[1755946447909,2.02713975,115670.0,115660.0,0.11202719]
[1755946448408,2.02713975,115670.0,115660.0,0.11202694]
[1755946451005,2.02713975,115670.0,115660.0,0.11202657]
[1755946456016,2.02713975,115670.0,115660.0,0.18989132]
[1755946456516,2.02713975,115670.0,115660.0,0.07815657]
[1755946457230,2.02713975,115670.0,115660.0,0.05523]
[1755946457527,2.02713975,115670.0,115660.0,0.07816414]
[1755946458226,2.02713975,115670.0,115660.0,0.07816409]
[1755946459227,2.02713975,115670.0,115660.0,0.15602884]
[1755946462930,2.02713975,115670.0,115660.0,0.22019884]
[1755946464033,2.02713975,115670.0,115660.0,0.10996884]
[1755946466638,2.02713975,115670.0,115660.0,0.09717664]
[1755946466935,2.02713975,115670.0,115660.0,0.10996976]
[1755946472251,2.02713975,115670.0,115660.0,0.10079976]
[1755946472539,2.02713975,115670.0,115660.0,0.02293501]
[1755946475843,2.02713975,115670.0,115660.0,0.01279312]
[1755946476033,0.1483082,115660.0,115650.0,0.11908]
[1755946476232,0.88990351,115660.0,115650.0,0.24201607]
[1755946477542,0.89190351,115660.0,115650.0,0.24201607]
[1755946481641,0.5111082,115660.0,115650.0,0.31988082]
[1755946482146,0.89190351,115660.0,115650.0,0.31988082]
[1755946482650,0.53110351,115660.0,115650.0,0.31988082]
[1755946482948,0.89190351,115660.0,115650.0,0.31988082]
[1755946484144,0.1503082,115660.0,115650.0,0.31988082]
[1755946484446,0.89190351,115660.0,115650.0,0.31988082]
[1755946484639,0.89190351,115660.0,115650.0,0.24201607]
[1755946485448,0.89190351,115660.0,115650.0,0.24210433]
[1755946486146,0.5111082,115660.0,115650.0,0.3511216]
[1755946486346,0.5111082,115660.0,115650.0,0.35112193]
[1755946486347,0.89190351,115660.0,115650.0,0.35112193]
[1755946489653,0.53110351,115660.0,115650.0,0.35112193]
[1755946489852,0.89190351,115660.0,115650.0,0.35112193]
[1755946491456,0.5111082,115660.0,115650.0,0.35112193]
[1755946491755,0.89190351,115660.0,115650.0,0.35112193]
[1755946493856,0.89190351,115660.0,115650.0,0.24210466]
[1755946494750,0.89190351,115660.0,115650.0,0.23196366]
[1755946494954,0.89190351,115660.0,115650.0,0.31999479]
[1755946495253,0.89190351,115660.0,115650.0,0.30711113]
[1755946495453,0.89190351,115660.0,115650.0,0.3199948]
[1755946496355,0.89190351,115660.0,115650.0,0.24210556]
[1755946496557,0.89190351,115660.0,115650.0,0.31999485]
[1755946499256,0.89190351,115660.0,115650.0,0.24210556]
[1755946501763,0.53110351,115660.0,115650.0,0.24210556]
[1755946501957,0.89190351,115660.0,115650.0,0.24210556]
[1755946503159,0.89190351,115660.0,115650.0,0.3511229]
[1755946503854,0.89190351,115660.0,115650.0,0.32809727]
[1755946504061,0.89190351,115660.0,115650.0,0.3511229]
[1755946512365,0.89190351,115660.0,115650.0,0.33823916]
[1755946512567,0.89190351,115660.0,115650.0,0.42914034]
[1755946512768,0.89190351,115660.0,115650.0,0.32012307]
[1755946518885,0.89190351,115660.0,115650.0,0.32012306]
[1755946520098,0.89190351,115660.0,115650.0,0.20836333]
[1755946520590,0.89190351,115660.0,115650.0,0.24052333]
[1755946521890,0.89190351,115660.0,115650.0,0.23038094]
[1755946522084,0.89190351,115660.0,115650.0,0.24052289]
[1755946522492,0.89190351,115660.0,115650.0,0.24052267]
[1755946523493,0.53110351,115660.0,115650.0,0.24052267]
[1755946523686,0.89190351,115660.0,115650.0,0.24052267]
[1755946525996,0.89190351,115660.0,115650.0,0.3184124]
[1755946528189,0.89190351,115660.0,115650.0,0.31841184]
[1755946529700,0.5111082,115660.0,115650.0,0.31841184]
[1755946530000,0.89190351,115660.0,115650.0,0.31841184]
[1755946531299,0.89190351,115660.0,115650.0,0.30826977]
[1755946531604,0.89190351,115660.0,115650.0,0.31841172]
[1755946533097,0.89190351,115660.0,115650.0,0.24052199]
[1755946533689,0.89190351,115660.0,115650.0,0.31840281]
[1755946534400,0.89190351,115660.0,115650.0,0.2405219]
[1755946534589,0.89190351,115660.0,115650.0,0.31840265]
[1755946534791,0.89190351,115660.0,115650.0,0.2405219]
[1755946535701,0.53110351,115660.0,115650.0,0.2405219]
[1755946535902,0.89190351,115660.0,115650.0,0.2405219]
[1755946537500,0.89190351,115660.0,115650.0,0.24052189]
[1755946540601,0.89190351,115660.0,115650.0,0.22751194]
[1755946540801,0.89190351,115660.0,115650.0,0.24052201]
[1755946542595,0.89190351,115660.0,115650.0,0.28624436]
[1755946542800,0.89190351,115660.0,115650.0,0.20836201]
[1755946543002,0.89190351,115660.0,115650.0,0.24099201]
[1755946545499,0.89190351,115660.0,115650.0,0.31887436]
[1755946547002,0.89190351,115660.0,115650.0,0.31884057]
[1755946548206,0.89190351,115660.0,115650.0,0.24095822]
[1755946548702,0.5111082,115660.0,115650.0,0.24095822]
[1755946548904,0.89190351,115660.0,115650.0,0.24095822]
[1755946550102,0.89190351,115660.0,115650.0,0.21784]
[1755946550409,0.89190351,115660.0,115650.0,0.24095782]
[1755946550700,0.89190351,115660.0,115650.0,0.24095769]
[1755946553808,0.5111082,115660.0,115650.0,0.24095769]
[1755946554013,0.89190351,115660.0,115650.0,0.24095769]
[1755946555812,0.5111082,115660.0,115650.0,0.24095769]
[1755946556112,0.89190351,115660.0,115650.0,0.24095769]
[1755946556310,0.89190351,115660.0,115650.0,0.31884004]
[1755946556511,0.89190351,115660.0,115650.0,0.31883948]
[1755946558220,0.89190351,115660.0,115650.0,0.31883947]
[1755946559215,1.67874351,115660.0,115650.0,0.31883947]
[1755946559511,1.67874351,115660.0,115650.0,0.30869742]
[1755946559712,1.67874351,115660.0,115650.0,0.3188395]
[1755946560115,1.67874351,115660.0,115650.0,0.31883949]
[1755946562811,1.67874351,115660.0,115650.0,0.24095714]
[1755946563704,1.67874351,115660.0,115650.0,0.20832714]
[1755946564014,1.67874351,115660.0,115650.0,0.24074714]
[1755946567617,1.67874351,115660.0,115650.0,0.24074718]
[1755946568011,1.67874351,115660.0,115650.0,0.23060506]
[1755946568209,1.67874351,115660.0,115650.0,0.24074808]
[1755946568817,1.67874351,115660.0,115650.0,0.31863043]
[1755946569316,1.67874351,115660.0,115650.0,0.27234043]
[1755946570214,1.67874351,115660.0,115650.0,0.30476043]
[1755946570409,1.67874351,115660.0,115650.0,0.31860043]
[1755946571616,1.31794351,115660.0,115650.0,0.31860043]
[1755946571816,1.67874351,115660.0,115650.0,0.31860043]
[1755946576314,1.67874351,115660.0,115650.0,0.31850751]
[1755946577513,1.67874351,115660.0,115650.0,0.3185075]
[1755946579517,1.67874351,115660.0,115650.0,0.24062515]
[1755946586118,1.67874351,115660.0,115650.0,0.3185075]
[1755946587026,1.67874351,115660.0,115650.0,0.31850771]
[1755946590727,1.31794351,115660.0,115650.0,0.31850771]
[1755946590930,1.67874351,115660.0,115650.0,0.31850771]
[1755946596029,1.67874351,115660.0,115650.0,0.30836559]
[1755946596216,1.67874351,115660.0,115650.0,0.31850875]
[1755946603536,1.31794351,115660.0,115650.0,0.31850875]
[1755946603737,1.67874351,115660.0,115650.0,0.31850875]
[1755946604836,1.67870351,115660.0,115650.0,0.31850875]
[1755946605436,1.67870351,115660.0,115650.0,0.30562447]
[1755946605638,1.67870351,115660.0,115650.0,0.31871243]
[1755946605930,1.67870351,115660.0,115650.0,0.29548235]
[1755946606137,1.67870351,115660.0,115650.0,0.31871241]
[1755946611641,1.31790351,115660.0,115650.0,0.31871241]
[1755946611834,1.67870351,115660.0,115650.0,0.31871241]
[1755946614945,1.67870351,115660.0,115650.0,0.3085703]
[1755946615140,1.67870351,115660.0,115650.0,0.31862239]
[1755946615443,1.67870351,115660.0,115650.0,0.30562447]
[1755946615636,1.67870351,115660.0,115650.0,0.31862241]
[1755946623260,1.67870351,115660.0,115650.0,0.30562447]
[1755946623461,1.67870351,115660.0,115650.0,0.31862227]
[1755946627666,1.67870351,115660.0,115650.0,0.31862224]
[1755946629360,1.67870351,115660.0,115650.0,0.20102224]
[1755946629561,1.67870351,115660.0,115650.0,0.12313989]
[1755946629864,1.67870351,115660.0,115650.0,0.02313989]
[1755946630457,1.67870351,115660.0,115650.0,0.12313989]
[1755946632868,2.03950351,115660.0,115650.0,0.12313989]
[1755946633067,2.03950351,115660.0,115650.0,0.1231104]
[1755946637171,2.03950351,115660.0,115650.0,0.0231104]
[1755946638584,2.03950351,115660.0,115650.0,0.02311039]
[1755946642279,0.0864957,115650.0,115640.0,0.19852235]
[1755946642468,0.89161101,115650.0,115640.0,0.32162989]
[1755946642869,0.5108157,115650.0,115640.0,0.32162989]
[1755946643173,0.89161101,115650.0,115640.0,0.32162989]
[1755946643873,0.89161101,115650.0,115640.0,0.32262989]
[1755946645367,0.89161101,115650.0,115640.0,0.32362989]
[1755946649670,0.89161101,115650.0,115640.0,0.28890989]
[1755946649874,0.89161101,115650.0,115640.0,0.24353754]
[1755946651779,0.89161101,115650.0,115640.0,0.24353798]
[1755946656682,0.53081101,115650.0,115640.0,0.24353798]
[1755946656882,0.89161101,115650.0,115640.0,0.24353798]
[1755946658582,0.53081101,115650.0,115640.0,0.24353798]
[1755946658885,0.5108157,115650.0,115640.0,0.24353798]
[1755946659188,0.89161101,115650.0,115640.0,0.24353798]
[1755946661180,0.89161101,115650.0,115640.0,0.2305728]
[1755946661392,0.89161101,115650.0,115640.0,0.24354064]
[1755946662888,0.89161101,115650.0,115640.0,0.32140675]
[1755946663286,0.89161101,115650.0,115640.0,0.28889675]
[1755946663590,0.89161101,115650.0,115640.0,0.27463675]
[1755946663779,0.89161101,115650.0,115640.0,0.19677064]
[1755946664390,0.89161101,115650.0,115640.0,0.19665471]
[1755946664583,0.89161101,115650.0,115640.0,0.22916471]
[1755946665388,0.89161101,115650.0,115640.0,0.24410471]
[1755946666990,0.89161101,115650.0,115640.0,0.12499471]
[1755946667888,0.89161101,115650.0,115640.0,0.20286161]
[1755946668480,0.89161101,115650.0,115640.0,0.12499471]
[1755946669394,0.5108157,115650.0,115640.0,0.12499471]
[1755946669692,0.89161101,115650.0,115640.0,0.12499471]
[1755946670697,0.89161101,115650.0,115640.0,0.12499512]
[1755946671394,0.89161101,115650.0,115640.0,0.12499522]
[1755946673895,0.89161101,115650.0,115640.0,0.12499552]
[1755946678697,0.89161101,115650.0,115640.0,0.18034552]
[1755946680099,0.89161101,115650.0,115640.0,0.18034845]
[1755946680900,0.89161101,115650.0,115640.0,0.18034844]
[1755946683191,0.5108157,115650.0,115640.0,0.18034844]
[1755946683490,0.89161101,115650.0,115640.0,0.18034844]
[1755946687201,0.89161101,115650.0,115640.0,0.17020556]
[1755946687392,0.89161101,115650.0,115640.0,0.18034844]
[1755946687592,0.89161101,115650.0,115640.0,0.25823746]
[1755946688593,0.89161101,115650.0,115640.0,0.25823745]
[1755946691600,0.89161101,115650.0,115640.0,0.29259745]
[1755946691801,0.89161101,115650.0,115640.0,0.29259686]
[1755946692993,0.89161101,115650.0,115640.0,0.27974205]
[1755946696388,0.89161101,115650.0,115640.0,0.29368205]
[1755946698094,0.89161101,115650.0,115640.0,0.29368204]
[1755946698907,0.89161101,115650.0,115640.0,0.21579302]
[1755946701005,0.5108157,115650.0,115640.0,0.23107302]
[1755946701202,0.89161101,115650.0,115640.0,0.23107302]
[1755946707312,0.89161101,115650.0,115640.0,0.22093]
[1755946707503,0.89161101,115650.0,115640.0,0.23107314]
[1755946707911,0.89161101,115650.0,115640.0,0.22093]
[1755946708215,0.89161101,115650.0,115640.0,0.23107314]
[1755946710004,0.5108157,115650.0,115640.0,0.23107314]
[1755946710302,0.89161101,115650.0,115640.0,0.23107314]
[1755946711616,0.5108157,115650.0,115640.0,0.23107314]
[1755946711807,0.89161101,115650.0,115640.0,0.23107314]
[1755946716607,0.89161101,115650.0,115640.0,0.30896216]
[1755946717212,0.89161101,115650.0,115640.0,0.29881902]
[1755946717411,0.89161101,115650.0,115640.0,0.30896216]
[1755946719318,0.89161101,115650.0,115640.0,0.23107314]
[1755946723021,0.89161101,115650.0,115640.0,0.2438712]
[1755946726024,0.89161101,115650.0,115640.0,0.23372882]
[1755946726226,0.89161101,115650.0,115640.0,0.2438723]
[1755946726628,0.89161101,115650.0,115640.0,0.32176132]
[1755946729327,0.89161101,115650.0,115640.0,0.2438723]
[1755946732326,0.5108157,115650.0,115640.0,0.2438723]
[1755946732628,0.89161101,115650.0,115640.0,0.2438723]
[1755946735432,0.89161101,115650.0,115640.0,0.23372916]
[1755946735631,0.89161101,115650.0,115640.0,0.24387363]
[1755946736230,0.89161101,115650.0,115640.0,0.24387361]
[1755946736726,0.89161101,115650.0,115640.0,0.32176263]
[1755946739326,0.89161101,115650.0,115640.0,0.24387361]
[1755946743238,0.5108157,115650.0,115640.0,0.24387361]
[1755946743430,0.89161101,115650.0,115640.0,0.24387361]
[1755946743938,0.89161101,115650.0,115640.0,0.22093]
[1755946744139,0.89161101,115650.0,115640.0,0.24387338]
[1755946744433,0.89161101,115650.0,115640.0,0.23373012]
[1755946744736,0.89161101,115650.0,115640.0,0.24387338]
[1755946747135,0.89161101,115650.0,115640.0,0.23107326]
[1755946747339,0.89161101,115650.0,115640.0,0.24387337]
[1755946747535,0.5108157,115650.0,115640.0,0.24387337]
[1755946747740,0.89161101,115650.0,115640.0,0.24387337]
[1755946748133,0.89161101,115650.0,115640.0,0.24387338]
[1755946753345,0.89161101,115650.0,115640.0,0.23373012]
[1755946753549,0.89161101,115650.0,115640.0,0.24389015]
[1755946754850,0.89161101,115650.0,115640.0,0.24140015]
[1755946762452,0.5108157,115650.0,115640.0,0.24140015]
[1755946762650,0.89161101,115650.0,115640.0,0.24140015]
[1755946763045,0.89161101,115650.0,115640.0,0.24140102]
[1755946766755,0.53081101,115650.0,115640.0,0.24140102]
[1755946766954,0.89161101,115650.0,115640.0,0.24140102]
[1755946767754,0.53081101,115650.0,115640.0,0.24140102]
[1755946768053,0.89161101,115650.0,115640.0,0.24140102]